Cogmind - Beta 17.1 @@@ ROGUE MODE // 2026.09.24 @ 19:05:59 Player: acra Result: Destroyed by G-50 Soldier with Heavy Laser Performance ------------- Evolutions (5) 2500 Regions Visited (8) 1600 Robots Destroyed (53) 265 Value Destroyed (1911) 1911 Prototype IDs (2) 40 Alien Tech Used (0) 0 Bonus (0) 0 TOTAL SCORE: 6316 Bonus ------- None Cogmind --------- Core Integrity 0/1000 Matter 30/300 Energy 72/160 System Corruption 5% Temperature Warm (146) Movement Treading (160) Location -5/Factory Parts ------- > --- POWER (1) -------- Light Nuclear Core > --- PROPULSION (3) --- Improved Medium Treads Improved Medium Treads Improved Medium Treads > --- UTILITY (10) ----- Advanced Heat Sink Medium Storage Unit Advanced Signal Interpreter Advanced Targeting Computer Advanced Targeting Computer Advanced Targeting Computer Advanced Targeting Computer Core Analyzer Hacking Suite Hacking Suite > --- WEAPON (3) ------- High-powered Shock Rifle Heavy Phase Cannon KE Penetrator > --- INVENTORY (10) --- Light Ion Engine Nuclear Core Compact Wheel Improved Sensor Array Improved Signal Interpreter Improved Particle Charger Mass Driver Mass Driver Mass Driver Peak State ------------ > --- POWER ------------ Light Nuclear Core > --- PROPULSION ------- Improved Medium Treads Improved Medium Treads Improved Medium Treads > --- UTILITY ---------- Advanced Heat Sink Medium Storage Unit Advanced Signal Interpreter Advanced Targeting Computer Advanced Targeting Computer Advanced Targeting Computer Advanced Targeting Computer Core Analyzer Hacking Suite Hacking Suite > --- WEAPON ----------- High-powered Shock Rifle Heavy Phase Cannon KE Penetrator > --- INVENTORY -------- Light Ion Engine Nuclear Core Compact Wheel Improved Sensor Array Improved Signal Interpreter Improved Particle Charger Mass Driver Mass Driver Mass Driver [Rating: 71] Favorites ----------- Power Light Angular Momentum Engine Engine Light Angular Momentum Engine Power Core Nuclear Core Propulsion Aluminum Leg Treads Improved Medium Treads Leg Aluminum Leg Wheel Compact Wheel Utility Advanced Targeting Computer Device Improved Sensor Array Storage Medium Storage Unit Processor Advanced Targeting Computer Hackware Hacking Suite Protection Light Armor Plating Weapon Ion Cannon Energy Gun EM Pulse Gun Energy Cannon Ion Cannon Ballistic Gun KE Penetrator Ballistic Cannon Mass Driver Build | -11 -10 -9 -8 -7 -7 -7 -6 -5 ------- Run | Yrd Mat Mat Mat Fac Was Fac Fac Fac Slots Evolved 10 | . . 2 2 2 . . 2 2 Power . | . . . . . . . . . Propulsion 1 | . . . 1 . . . . . Utility 8 | . . 2 1 2 . . 2 1 Weapon 1 | . . . . . . . . 1 Parts Attached 75 | 9 4 16 17 3 . 2 6 18 Power 10 | 1 . 5 2 . . . 1 1 Engine 8 | 1 . 5 2 . . . . . Core 2 | . . . . . . . 1 1 Reactor . | . . . . . . . . . Propulsion 19 | 3 . 2 7 1 . . 2 4 Treads 3 | . . . . . . . . 3 Leg 15 | 2 . 2 7 1 . . 2 1 Wheel 1 | 1 . . . . . . . . Hover . | . . . . . . . . . Flight . | . . . . . . . . . Utility 27 | 2 2 3 8 2 . 2 3 5 Device 10 | 1 . 2 3 . . . 1 3 Storage 5 | 1 1 . . . . 1 1 1 Processor 9 | . . 1 3 2 . 1 1 1 Hackware 2 | . 1 . 1 . . . . . Protection 1 | . . . 1 . . . . . Artifact . | . . . . . . . . . Weapon 19 | 3 2 6 . . . . . 8 Energy Gun 7 | 2 2 . . . . . . 3 Energy Cannon 7 | . . 6 . . . . . 1 Ballistic Gun 2 | 1 . . . . . . . 1 Ballistic Cannon 3 | . . . . . . . . 3 Launcher . | . . . . . . . . . Special Weapon . | . . . . . . . . . Impact Weapon . | . . . . . . . . . Slashing Weapon . | . . . . . . . . . Piercing Weapon . | . . . . . . . . . Special Melee Weapon . | . . . . . . . . . Unidentified Prototypes . | . . . . . . . . . Corrupted Parts 1 | . . . . . . . . 1 System Corruption 5 | . . . . . . . . 5 Parts Lost 10 | . . 1 3 . 1 . 1 4 Power 1 | . . 1 . . . . . . Propulsion 4 | . . . . . 1 . . 3 Utility 4 | . . . 3 . . . . 1 Weapon 1 | . . . . . . . 1 . Highest Loss Streak 3 | . . 1 2 . 1 . 1 3 To Critical Strikes . | . . . . . . . . . Average Backups 7 | 2 7 9 9 9 7 4 4 9 Power 1 | . 1 . 1 2 1 1 1 1 Propulsion 2 | . 1 2 2 3 3 2 1 1 Utility 1 | . 2 2 1 . . . . 2 Weapon 2 | . 2 3 2 3 2 1 . 3 Tool/Special . | . . . . . . . . . Unused Backups 25 | . 3 8 4 2 3 . 1 4 Power 4 | . . 1 1 . 1 . . 1 Propulsion 3 | . 1 1 . 1 . . . . Utility 6 | . . 2 1 . . . . 3 Weapon 12 | . 2 4 2 1 2 . 1 . Tool/Special . | . . . . . . . . . Average Slot Usage (%) 97 | . 100 99 97 99 92 98 97 95 Engine 6 | . 14 11 9 7 7 7 1 . Core 1 | . . . . . . . 4 5 Leg 21 | . 28 22 26 23 19 23 20 12 Device 6 | . 1 11 12 . . . 4 4 Storage 7 | . 14 11 9 7 3 1 1 4 Processor 20 | . . 10 7 29 30 34 39 35 Hackware 11 | . 12 11 9 15 15 15 13 11 Energy Gun 3 | . 28 1 . . . . . 2 Energy Cannon 13 | . . 20 18 15 15 15 12 8 Peak Build Rating 71 | 9 12 17 33 39 39 42 50 71 Average Rating 33 | 6 10 16 28 37 36 41 47 61 On Entrance 26 | . 9 12 17 32 39 35 42 49 Avg Prop Armor Cover (%) . | . . . . . . . . . Naked Turns . | . . . . . . . . . Heaviest Build 99 | 15 21 28 38 31 31 22 99 45 Greatest Support 90 | 20 20 26 47 38 38 43 51 90 Greatest Overweight (x) 2 | . 1 1 2 . . . 1 2 Average Overweight (x) . | . . . . . . . . . Largest Inventory Capacity 25 | 8 10 10 10 10 10 5 25 10 Average Capacity 9 | 7 9 10 10 10 7 5 8 9 Most Carried 10 | 3 10 10 10 10 10 5 7 10 Average Carried 8 | 2 7 9 9 8 7 4 4 9 Final Capacity 10 | 8 10 10 10 10 5 5 5 10 Final Carried 10 | 3 10 8 10 10 5 5 4 9 Class Distribution -------------------- 31% | Scavenger-Mutant 27% | Hacker-Mutant 22% | Mutant 18% | Hacker-Gunner Dominant Class ---------------- Mutant | -10/Materials Scavenger-Mutant | -9/Materials Scavenger-Mutant | -8/Materials Hacker-Mutant | -7/Factory Hacker-Mutant | -7/Waste Hacker-Mutant | -7/Factory Hacker-Mutant | -6/Factory Hacker-Gunner | -5/Factory Resources | -11 -10 -9 -8 -7 -7 -7 -6 -5 ----------- Run | Yrd Mat Mat Mat Fac Was Fac Fac Fac Matter Collected 1086 | 141 169 168 200 54 . . . 354 Remotely . | . . . . . . . . . Salvage Created 2296 | 13 101 652 869 54 . 61 . 546 Parts 132 | 3 7 37 60 3 . . . 22 Haulers Intercepted . | . . . . . . . . . Recyclers Shooed 1 | . . . 1 . . . . . Parts Field Recycled . | . . . . . . . . . Retrieved Matter . | . . . . . . . . . Parts Self-Destructed . | . . . . . . . . . Prevented . | . . . . . . . . . Parts Restored . | . . . . . . . . . Kills | -11 -10 -9 -8 -7 -7 -7 -6 -5 ------- Run | Yrd Mat Mat Mat Fac Was Fac Fac Fac Combat Hostiles Destroyed 42 | . 2 14 15 1 . . . 10 Guns 2 | . 1 . . . . . . 1 Cannons 39 | . . 14 15 1 . . . 9 AOE 1 | . 1 . . . . . . . Classes Destroyed 12 | 1 2 4 3 . . . . 2 Worker 2 | . . . . . . . . 2 Builder 2 | . . 1 . . . . . 1 Tunneler 1 | 1 . . . . . . . . Recycler 3 | . . 1 . . . 1 . 1 Operator 1 | . 1 . . . . . . . Watcher 2 | . . . 2 . . . . . Swarmer 7 | . . 4 . . . . . 3 Grunt 23 | . 2 7 8 . . . . 6 Sentry 8 | . . 3 5 . . . . . Hunter 2 | . . . 1 1 . . . . Programmer 1 | . . . . . . . . 1 Heavy 1 | . . . 1 . . . . . Best Kill Streak 6 | 1 2 6 4 1 . 1 . 6 Combat Bots Only 6 | . 2 4 4 1 . . . 6 Max Kills in Single Turn 2 | 1 1 1 1 1 . 1 . 2 Gunslinging . | . . . . . . . . . Exploded 1 | . 1 . . . . . . . Melee . | . . . . . . . . . Uniques/NPCs Destroyed . | . . . . . . . . . Combat | -11 -10 -9 -8 -7 -7 -7 -6 -5 -------- Run | Yrd Mat Mat Mat Fac Was Fac Fac Fac Hostile Shots Fired 231 | . 13 61 54 2 1 . 26 74 Missed 77 | . 4 26 17 1 . . 13 16 Hits 154 | . 9 35 37 1 1 . 13 58 Melee 1 | . . . . . 1 . . . Projectile 153 | . 9 35 37 1 . . 13 58 Critical Strikes 12 | . . . 4 . . . 1 7 Damage Taken 3505 | . 138 394 667 14 45 . 254 1993 Core 1183 | . 12 61 109 . . . . 1001 Absorbed by Shields . | . . . . . . . . . Core Remaining (%) 93 | 100 95 84 80 . . 100 100 . Volleys Fired 121 | 1 11 25 51 2 . 1 1 29 Largest 3 | 2 2 2 2 2 . 2 2 3 Hottest 210 | 80 80 120 120 120 . 120 120 210 Shots Fired 264 | 2 21 48 100 4 . 2 2 85 Gun 43 | 2 21 . . . . . . 20 Cannon 221 | . . 48 100 4 . 2 2 65 Launcher . | . . . . . . . . . Special . | . . . . . . . . . Kinetic 42 | . . . . . . . . 42 Thermal 179 | . . 39 100 4 . 2 2 32 Explosive . | . . . . . . . . . Electromagnetic 43 | 2 21 9 . . . . . 11 Robot Hit Streak 16 | 1 5 12 11 5 . 6 . 16 Robot Miss Streak 8 | . 2 7 8 . . . . 3 Penetration Max 1 | . . . . . . . . 1 Secondary Targets . | . . . . . . . . . Shots Hit Robots 157 | 1 11 28 62 4 . 1 . 50 Core Hits 74 | 1 5 16 27 2 . . . 23 Critical Kills 1 | . . . . . . 1 . . Critical Parts Destroyed . | . . . . . . . . . Critical Strikes 4 | . . . . . . 1 . 3 Meltdown 1 | . . . . . . 1 . . Blast 2 | . . . . . . . . 2 Corrupt 1 | . . . . . . . . 1 Melee Attacks . | . . . . . . . . . Impact . | . . . . . . . . . Slashing . | . . . . . . . . . Piercing . | . . . . . . . . . Sneak Attacks . | . . . . . . . . . Combat Hostiles . | . . . . . . . . . Follow-up Attacks . | . . . . . . . . . Damage Inflicted 4343 | 15 186 645 1556 89 . 24 . 1828 Guns 533 | 15 143 . . . . . . 375 Cannons 3466 | . . 635 1556 89 . 24 . 1162 Explosions 317 | . 43 . . . . . . 274 Melee . | . . . . . . . . . Ramming 27 | . . 10 . . . . . 17 Kinetic 739 | . . . . . . . . 739 Thermal 3025 | . 43 458 1556 89 . 24 . 855 Explosive . | . . . . . . . . . Electromagnetic 552 | 15 143 177 . . . . . 217 Impact . | . . . . . . . . . Slashing . | . . . . . . . . . Piercing . | . . . . . . . . . Highest Corruption 5 | . . 4 . . . . . 5 Average Corruption 4 | . . 3 . . . . . 5 Corruption Purged . | . . . . . . . . . Corruption Blocked . | . . . . . . . . . Effects 27 | . . 12 . . . . . 15 Message Errors 5 | . . 3 . . . . . 2 Matter Fused 6 | . . 3 . . . . . 3 Heat Flow Errors 3 | . . 1 . . . . . 2 Energy Discharges 5 | . . 3 . . . . . 2 Parts Fused 1 | . . . . . . . . 1 Data Loss (minor) 1 | . . . . . . . . 1 Data Loss (major) 2 | . . 1 . . . . . 1 Misfires 1 | . . . . . . . . 1 Alerts 2 | . . 1 . . . . . 1 Weapon Failures 1 | . . . . . . . . 1 Overload Shots . | . . . . . . . . . Overflow Damage 189 | . . 24 27 . . . . 138 Projectiles 67 | . . 24 27 . . . . 16 Explosions 122 | . . . . . . . . 122 Melee . | . . . . . . . . . Knockbacks 3 | . . . . . . . . 3 Impact . | . . . . . . . . . Kinetic 3 | . . . . . . . . 3 Secondary . | . . . . . . . . . Self-Inflicted Damage 195 | . 39 . . . . . . 156 Shots 3 | . 1 . . . . . . 2 Rammed . | . . . . . . . . . Targets Rammed 8 | . . 6 . . . . . 2 Kicked 8 | . . 6 . . . . . 2 Crushed . | . . . . . . . . . Highest Temperature 840 | 18 162 175 201 78 . 39 30 840 Average Temperature 112 | 12 60 57 63 40 . 26 15 271 Received Heat Transfer 1027 | . 54 111 261 . . . 102 499 Effects 22 | . . . . . . . . 22 Shutdowns 5 | . . . . . . . . 5 Energy Bleed 1 | . . . . . . . . 1 Matter Decay 2 | . . . . . . . . 2 Damage (minor) 5 | . . . . . . . . 5 Damage (major) 4 | . . . . . . . . 4 Damage (core) 5 | . . . . . . . . 5 Siege Activations . | . . . . . . . . . Martial Activations . | . . . . . . . . . Shielding Activations . | . . . . . . . . . Robots Disrupted . | . . . . . . . . . Combat Hostiles . | . . . . . . . . . Robots Corrupted . | . . . . . . . . . Combat Hostiles . | . . . . . . . . . Parts Fried 3 | . . . . . . . . 3 Impact Corruptions . | . . . . . . . . . Robots Melted 1 | . . . . . . 1 . . Combat Hostiles . | . . . . . . . . . Parts Melted 8 | . . . 5 . . 2 . 1 Heat Transferred 4283 | . 50 740 2405 148 . 37 . 903 Parts Sabotaged . | . . . . . . . . . Parts Stolen . | . . . . . . . . . Parts Stripped . | . . . . . . . . . Power Chain Reactions 2 | . 1 . . . . . . 1 Alert | -11 -10 -9 -8 -7 -7 -7 -6 -5 ------- Run | Yrd Mat Mat Mat Fac Was Fac Fac Fac Maximum Alert Level 1 | . . 1 1 . . . . 1 Low Security (%) 86 | 100 100 83 62 100 100 100 100 91 Level 1 13 | . . 16 37 . . . . 8 Level 2 . | . . . . . . . . . Level 3 . | . . . . . . . . . Level 4 . | . . . . . . . . . Level 5 . | . . . . . . . . . High Security . | . . . . . . . . . Max Security . | . . . . . . . . . Peak Influence 259 | 5 58 259 256 115 33 5 60 248 Initial 104 | . . . 104 95 33 . 2 25 Average 78 | . 13 76 175 99 12 . 12 87 Influence Increases 1600 | 5 73 446 439 30 . 5 135 467 Destroy 0b10 Robot/C 840 | . 40 280 300 20 . . . 200 Destroy 0b10 Robot/NC 55 | 5 5 10 10 . . 5 . 20 Destroy Leader 214 | . 10 70 94 10 . . . 30 Successful Hack 39 | . . 18 3 . . . . 18 Disable Machine 120 | . 15 . 15 . . . 15 75 Destroy Structure 122 | . 3 8 17 . . . . 94 Lose Combat Pursuer 210 | . . 60 . . . . 120 30 Influence Decreases 1352 | 5 73 198 476 146 95 . 88 271 Entered New Map 352 | . . . 144 116 62 . 3 27 Time Decay 910 | 5 73 188 302 30 23 . 85 204 Lost Part 90 | . . 10 30 . 10 . . 40 Squads Dispatched 14 | . 1 3 3 . . 1 . 6 Investigation 4 | . . 2 1 . . . . 1 Extermination 1 | . . . . . . . . 1 Reinforcement 6 | . 1 1 2 . . 1 . 1 Assault . | . . . . . . . . . Garrison 3 | . . . . . . . . 3 Intercept . | . . . . . . . . . Searches Triggered . | . . . . . . . . . Construction Impeded 1 | . . . . . . . . 1 Haulers Reinforced . | . . . . . . . . . Active Scanning Responses . | . . . . . . . . . Cargo Convoy Interrupts . | . . . . . . . . . Stealth | -11 -10 -9 -8 -7 -7 -7 -6 -5 --------- Run | Yrd Mat Mat Mat Fac Was Fac Fac Fac Distress Signals 6 | . . 3 3 . . . . . Communications Jammed . | . . . . . . . . . Distress Signals . | . . . . . . . . . Times Spotted 86 | . 2 27 22 1 6 1 8 19 Peak Tracking Total 9 | . 2 9 4 1 6 1 4 6 Tactical Retreats 8 | . . 4 . . . . 2 2 Traps | -11 -10 -9 -8 -7 -7 -7 -6 -5 ------- Run | Yrd Mat Mat Mat Fac Was Fac Fac Fac Traps Triggered 6 | . . 3 1 1 . . . 1 Indirectly . | . . . . . . . . . Trap Hack Attempts . | . . . . . . . . . Triggered . | . . . . . . . . . Disarmed . | . . . . . . . . . Reprogrammed . | . . . . . . . . . Reused . | . . . . . . . . . Traps Extracted . | . . . . . . . . . Installed . | . . . . . . . . . Triggered . | . . . . . . . . . Machines | -11 -10 -9 -8 -7 -7 -7 -6 -5 ---------- Run | Yrd Mat Mat Mat Fac Was Fac Fac Fac Machines Disabled 8 | . 1 . 1 . . . 1 5 Max in Single Turn 2 | . 1 . 1 . . . 1 2 Machines Repaired . | . . . . . . . . . Machines Dismantled . | . . . . . . . . . Machines Sabotaged . | . . . . . . . . . Overloaded Fab Kills . | . . . . . . . . . Hacking | -11 -10 -9 -8 -7 -7 -7 -6 -5 --------- Run | Yrd Mat Mat Mat Fac Was Fac Fac Fac Machines Accessed 8 | . . 3 1 . . 1 . 3 Terminals 6 | . . 3 1 . . 1 . 1 Fabricators . | . . . . . . . . . Repair Stations . | . . . . . . . . . Recycling Units 1 | . . . . . . . . 1 Scanalyzers . | . . . . . . . . . Garrison Access 1 | . . . . . . . . 1 Total Hacks 20 | . . 8 4 . . 2 . 6 Successful 8 | . . 3 2 . . 1 . 2 Failed 12 | . . 5 2 . . 1 . 4 Catastrophic 4 | . . . 2 . . . . 2 Database Lockouts . | . . . . . . . . . Manual 5 | . . 2 2 . . . . 1 Terminals 16 | . . 8 4 . . 2 . 2 Fabricators . | . . . . . . . . . Repair Stations . | . . . . . . . . . Recycling Units 3 | . . . . . . . . 3 Scanalyzers . | . . . . . . . . . Garrison Access 1 | . . . . . . . . 1 Terminal Hacks 7 | . . 3 2 . . 1 . 1 Record 1 | . . . . . . 1 . . Prototype ID Bank 1 | . . 1 . . . . . . Level Access Points 1 | . . 1 . . . . . . Branch Access Points 1 | . . 1 . . . . . . Registered Components 1 | . . . 1 . . . . . Zone Layout 2 | . . . 1 . . . . 1 Fabricator Hacks . | . . . . . . . . . Repair Station Hacks . | . . . . . . . . . Recycling Unit Hacks 1 | . . . . . . . . 1 Retrieve Components 1 | . . . . . . . . 1 Scanalyzer . | . . . . . . . . . Garrison Access Hacks . | . . . . . . . . . Unauthorized Hacks . | . . . . . . . . . Terminals . | . . . . . . . . . Fabricators . | . . . . . . . . . Repair Stations . | . . . . . . . . . Recycling Units . | . . . . . . . . . Scanalyzers . | . . . . . . . . . Garrison Access . | . . . . . . . . . Data Cores Recovered . | . . . . . . . . . Used . | . . . . . . . . . Hacking Detections 7 | . . 2 1 . . 1 . 3 Full Trace Events 3 | . . 2 1 . . . . . Feedback Events . | . . . . . . . . . Feedback Blocked . | . . . . . . . . . Robot Schematics Acquired . | . . . . . . . . . Robots Built . | . . . . . . . . . Authchips . | . . . . . . . . . Time . | . . . . . . . . . Total Robot Build Rating . | . . . . . . . . . Part Schematics Acquired . | . . . . . . . . . Parts Built . | . . . . . . . . . Authchips . | . . . . . . . . . Time . | . . . . . . . . . Total Part Build Rating . | . . . . . . . . . Part Studies Acquired . | . . . . . . . . . Parts Repaired . | . . . . . . . . . Time . | . . . . . . . . . Parts Recycled . | . . . . . . . . . Recycled Matter . | . . . . . . . . . Retrieved Matter . | . . . . . . . . . Retrieved Components 2 | . . . . . . . . 2 Parts Scanalyzed . | . . . . . . . . . Part Schematics Acquired . | . . . . . . . . . Parts Damaged . | . . . . . . . . . Bothacking | -11 -10 -9 -8 -7 -7 -7 -6 -5 ------------ Run | Yrd Mat Mat Mat Fac Was Fac Fac Fac Used RIF Installer . | . . . . . . . . . Robots Hacked . | . . . . . . . . . Non-combat . | . . . . . . . . . Combat . | . . . . . . . . . Robot Hacks Applied . | . . . . . . . . . Relay Couplers Released . | . . . . . . . . . Fabnet Peak Effective % . | . . . . . . . . . Robots Rewired . | . . . . . . . . . Allies Hacked . | . . . . . . . . . Hacks Repelled . | . . . . . . . . . Allies | -11 -10 -9 -8 -7 -7 -7 -6 -5 -------- Run | Yrd Mat Mat Mat Fac Was Fac Fac Fac Total Allies . | . . . . . . . . . Largest Group . | . . . . . . . . . Highest-Rated Group . | . . . . . . . . . Highest-Rated Ally . | . . . . . . . . . Total Orders . | . . . . . . . . . Ally Attacks . | . . . . . . . . . Total Damage . | . . . . . . . . . Kills . | . . . . . . . . . Allies Corrupted . | . . . . . . . . . Allies Melted . | . . . . . . . . . Intel | -11 -10 -9 -8 -7 -7 -7 -6 -5 ------- Run | Yrd Mat Mat Mat Fac Was Fac Fac Fac Active Infowar (turns) 1063 | 28 28 206 289 . . . 285 227 Sensors 849 | . . 206 131 . . . 285 227 Terrain 214 | 28 28 . 158 . . . . . Robot Analysis Total . | . . . . . . . . . Derelict Logs Recovered . | . . . . . . . . . Drone Launches . | . . . . . . . . . Drone Recoveries . | . . . . . . . . . Exploration | -11 -10 -9 -8 -7 -7 -7 -6 -5 ------------- Run | Yrd Mat Mat Mat Fac Was Fac Fac Fac Turns Passed 2970 | 75 285 627 661 77 89 170 416 570 Spaces Moved 1655 | 49 128 318 316 54 75 131 304 280 Core 2 | 2 . . . . . . . . Treads 5 | . . . . . . . . 5 Legs 1646 | 45 128 318 316 54 75 131 304 275 Wheels 2 | 2 . . . . . . . . Hover . | . . . . . . . . . Flight . | . . . . . . . . . Fastest Speed 50 | 50 120 120 120 120 120 120 120 120 Average Speed 134 | 116 138 149 122 120 120 120 128 152 Slowest Speed 260 | 120 190 190 260 120 120 120 190 260 Overloaded Moves . | . . . . . . . . . Propulsion Burnouts . | . . . . . . . . . Robots Hopped . | . . . . . . . . . Potential Cave-ins . | . . . . . . . . . Cave-ins Triggered . | . . . . . . . . . Exploration Rate (%) 18 | 3 16 33 27 2 70 4 5 8 Regions Visited 8 Branch Regions . Pre-discovered Areas . | . . . . . . . . . Known Exits Taken 2 | . . 1 . . . . 1 . Unknown Exits Taken 4 | 1 1 . 1 . . 1 . . Scrap Searched . | . . . . . . . . . Spaces Dug . | . . . . . . . . . Terrain Destroyed 63 | . 2 5 15 . . . . 41 Melee . | . . . . . . . . . Projectile 38 | . . 5 15 . . . . 18 AOE 25 | . 2 . . . . . . 23 Terrain Rammed . | . . . . . . . . . Walls Destroyed . | . . . . . . . . . Machines Disabled . | . . . . . . . . . Actions | -11 -10 -9 -8 -7 -7 -7 -6 -5 --------- Run | Yrd Mat Mat Mat Fac Was Fac Fac Fac Total 2160 | 62 219 424 496 64 74 141 328 352 Wait 172 | . 57 29 72 . . 5 6 3 Move 1648 | 48 127 317 315 54 74 130 303 280 Hop . | . . . . . . . . . Pick Up 57 | 2 11 11 16 3 . 1 4 9 Fast Attach 31 | 8 1 5 5 . . 2 3 7 Attach 20 | 1 . 4 8 2 . 1 2 2 Detach 5 | 2 1 . 1 . . . . 1 Swap 37 | . 3 8 10 1 . . 3 12 Drop 61 | . 8 19 18 2 . 1 6 7 Fire 121 | 1 11 25 51 2 . 1 1 29 Melee . | . . . . . . . . . Ram . | . . . . . . . . . Kick 8 | . . 6 . . . . . 2 Crush . | . . . . . . . . . Escape Stasis . | . . . . . . . . . Rewire . | . . . . . . . . . Trap . | . . . . . . . . . Miscellaneous . | . . . . . . . . . Route ------- -11/Scrapyard -10/Materials (discovered 2 exits: *Mat / [*Min]) -9/Materials (discovered 7 exits: *Mat x3 / *Min x2 / Sto x2) -8/Materials -7/Factory -7/Waste -7/Factory -6/Factory -5/Factory History --------- Turn | Location | Event 6 | -11/Scrapyard | Discovered new exit (range 15) 76 | -11/Scrapyard | Entered Materials 329 | -10/Materials | Discovered new exit (range 16) 334 | -10/Materials | Build established: Mutant 356 | -10/Materials | Discovered new exit (range 16) 361 | -10/Materials | Entered another Materials area 361 | -9/Materials | Evolved 2 slots: Utility x2 434 | -9/Materials | Identified exit to Mines 434 | -9/Materials | Identified exit to Storage 811 | -9/Materials | Identified exit to Materials 963 | -9/Materials | Build established: Scavenger-Mutant 988 | -9/Materials | Entered another Materials area 988 | -8/Materials | Evolved 2 slots: Propulsion x1, Utility x1 1363 | -8/Materials | Found Prototype Device 1600 | -8/Materials | Discovered new exit (range 16) 1649 | -8/Materials | Entered Factory 1649 | -7/Factory | Evolved 2 slots: Utility x2 1726 | -7/Factory | Sucked down chute 1726 | -7/Factory | Entered Waste 1736 | -7/Waste | Spotted C-40 Crusher 1753 | -7/Waste | Spotted C-40 Crusher 1763 | -7/Waste | Crushed by Compactor (1 part destroyed, 1 dropped) 1768 | -7/Waste | Spotted C-40 Crusher 1779 | -7/Waste | Spotted C-40 Crusher 1788 | -7/Waste | Spotted C-40 Crusher 1794 | -7/Waste | Spotted C-40 Crusher 1800 | -7/Waste | Discovered new exit (range 14) 1815 | -7/Waste | Entered Factory 1896 | -7/Factory | Build established: Hacker-Mutant 1963 | -7/Factory | Discovered new exit (range 8) 1985 | -7/Factory | Entered another Factory area 1985 | -6/Factory | Evolved 2 slots: Utility x2 2032 | -6/Factory | Discovered new exit (range 16) 2052 | -6/Factory | Identified exit to Factory 2401 | -6/Factory | Entered another Factory area 2401 | -5/Factory | Evolved 2 slots: Utility x1, Weapon x1 2636 | -5/Factory | Garrison activated, responded to threat 2655 | -5/Factory | Core integrity fell below 50% 2669 | -5/Factory | Core integrity fell below 20% 2684 | -5/Factory | Lost 3 parts (2n1u) 2700 | -5/Factory | Build established: Hacker-Gunner 2971 | -5/Factory | Destroyed by G-50 Soldier with Heavy Laser Last Messages --------------- 02964_ U-05 Engineer builds a Wall. 02965_ K-01 Serf collects debris. 02965_ Slug penetrates G-50 Soldier. 02966_ U-05 Engineer lays Concrete. 02966_ K-01 Serf collects debris. 02967_ U-05 Engineer lays Concrete. 02967_ Critical hit (Burn: +37). 02968_ U-05 Engineer builds a Wall. 02968_ K-01 Serf collects debris. 02969_ G-50 Soldier destroyed. 02969_ Slug penetrates Door. 02969_ R-10 Processor collects Wheel. 02969_ U-05 Engineer lays Concrete. 02970_ System corrupted: FCS attempts to trigger Hvy. Phase Cannon. 02970_ System corrupted: Hvy. Phase Cannon misfires. 02970_ Critical hit (Burn: +37). 02970_ U-05 Engineer lays Concrete. 02970_ K-01 Serf collects debris. Map ----- +----------------------------------------------------+ | ?????????????????????????????????????????????????? | | ?????????????????????????????????????????????????? | | ?????????????????????????????????????????????????? | | ?????????????????????????????????????????????????? | | ?????????????????????????????????????????????????? | | ?????????????????????????????????????????????????? | | ?????????????????????????????????????????????????? | | ?????????????????????????????????????????????????? | | ?????????????????????????????????????????????????? | | ?????????????????????????????????????????????????? | | ?????????????????????????????????????????????????? | | ?????????????????????????????????????????????????? | | ?????????????????????????????????????????????????? | | ?????????????????????????????????????????????????? | | ?????????????????????????????????????????????????? | | ????????????????# ???????????????????????????????? | | ????????????????? ???????????????????????????????? | | ?????????????????# ?????????????####+#???????????? | | ?????????????????# ############ ????????????? | | ???????????# ##### # ""?????????????? | | ???????????# ; """"?????????????? | | ????????????????# # """"" #?????????? | | ????????????????# !!! g= # #?????????? | | ????????????????# !!] ! # """????????????? | | ????????????????# !!] %g% u # """"????????????? | | ?????????????# ## k k @ # """"" ??????????? | | ?????????????# R # #?????????? | | ?????????????# % ##+######??????????? | | ?????????+ ug%g ;# #???????????????? | | ??????????####### ###k#;;;;# #???????????????? | | ????????????????# #"# #;####?#???????????????? | | ?????????############### ;#T # #???????????????? | | ?????????/ #???????????????? | | ?????????## ############ ## ????????? | | ??????????# ########???##+##?/# ?????? | | ??????????# # #????? ???#? ??????? | | #?????????# # [ #?????" ?????? ??????? | | #####+##### # "" ### ??" ??????? ???????? | | + "Y! # ? ??? ????????" " ???????? | | # ""!! ### ??? ?????????? " ???????? | | # #?# ???????????????? ????????? | | ########?# ????????????????? ????????? | | #????????# ??????????????????????????? | | ######+####+###??????# ??????????????????????????? | | #??????##??????????????????????????? | | """ """ """ #??????????????????????????????????? | | """ """ """ #??????????????????????????????????? | | """ """ """ #??????????????????????????????????? | | #??????????????????????????????????? | | #??????????????????????????????????? | +----------------------------------------------------+ Best States ------------- Heat Dissipation 59 Energy Generation 18 Energy Capacity 350 Matter Stores 300 Matter Capacity 300 Sight Range 16 Robot Scan Range 15 Terrain Scan Range 16 Terrain Scan Density 10 Additional Mass Support 6 Armor Coverage 150 Evasion (%) 55 Targeting Accuracy 32 Core Analysis 6 Recoil Reduction 3 Particle Charging 20 Offensive Hacking 20 Item Schematics ----------------- None Robot Schematics ------------------ None Fabricated ------------ Nothing Repaired ---------- Nothing Studied --------- None Alien Tech Used ----------------- None Achievements -------------- None Challenges ------------ None Game ------ Seed FluxThermoelectricLaser Manual? 0 Play Time 00:37:52 Cumulative 63.1 hours Start 2026.09.24 @ 18:29:19 End 2026.09.24 @ 19:05:59 Sessions 1 Manual Loads 0 Difficulty Rogue Special Mode None Game No. 104 Rogue 85 Adventurer 18 Explorer 1 Win Type - Total 4 Types 4/0/0/0/0/0/0/0/0/0 Lore% 15 Gallery% 36 Achievement% 25 Wizard Run 0 Options --------- Layout 1 ASCII 0 Keyboard 0 Movement Mouse Keybinds 0 Fullscreen 2 Font 24/Smallcaps Map View 50x35 Zoom Use 0% Tactical HUD 1 Map Filters NONE Filters NONE Steam 1 RUN: 753d4c0a-4dcf-4a93-9ccd-c1df8396330a